{"text_format":"1","workbook":"xlsx","n_sheets":1,"sheets":["DANE"],"not_rendered":{"charts":1,"images":0,"macros":1,"external_links":0,"defined_names":1,"comments":0,"pivot_tables":0},"unopened":[],"bounds":{"document_bytes":16777216,"sheet_cells":100000,"rows_first":2000,"rows_last":500,"rows_between":2000,"halvings":0,"cell_chars":16384,"cell_head_chars":4096},"cells_cut":0,"cells_raw":0,"read":"whole","date_system":"1900"}

{"sheet":"DANE","index":0,"n_rows":14,"n_cols":25,"rows_kept":14,"cut":false,"hidden":false,"merged":[]}
[]
[null,null,null,null,null,null,null,null,null,null,null,null,null,null,null,null,null,0]
[null,null,null,null,null,null,null,null,null,null,null,null,0,{"$f":"OFFSET(Tabela2[[#Headers],[2020]],,R2)","v":"2020"},null,null,null,null,null,"NR","Kraj","2020","2021","2022","2023"]
[null,null,null,null,null,null,null,null,null,null,null,null,{"$f":"_xlfn._xlws.SORT(_xlfn.HSTACK(Tabela2[Kraj],OFFSET(Tabela2[2020],,R2)),2)","v":"Estonia"},10,{"$f":"_xlfn.XLOOKUP(M4,Tabela2[Kraj],Tabela2[NR])","v":7},null,null,null,null,1,"Polska",41,43,47,60]
[null,null,null,null,null,null,null,null,null,null,null,null,"Litwa",13,{"$f":"_xlfn.XLOOKUP(M5,Tabela2[Kraj],Tabela2[NR])","v":5},null,null,null,null,2,"Niemcy",40,40,40,40]
[null,null,null,null,null,null,null,null,null,null,null,null,"Czechy",23,{"$f":"_xlfn.XLOOKUP(M6,Tabela2[Kraj],Tabela2[NR])","v":3},null,null,null,null,3,"Czechy",23,23,23,23]
[null,null,null,null,null,null,null,null,null,null,null,null,"Słowacja",24,{"$f":"_xlfn.XLOOKUP(M7,Tabela2[Kraj],Tabela2[NR])","v":4},null,null,null,null,4,"Słowacja",24,24,24,24]
[null,null,null,null,null,null,null,null,null,null,null,null,"Łotwa",26,{"$f":"_xlfn.XLOOKUP(M8,Tabela2[Kraj],Tabela2[NR])","v":6},null,null,null,null,5,"Litwa",13,13,13,13]
[null,null,null,null,null,null,null,null,null,null,null,null,"Francja",29,{"$f":"_xlfn.XLOOKUP(M9,Tabela2[Kraj],Tabela2[NR])","v":9},null,null,null,null,6,"Łotwa",26,26,26,26]
[null,null,null,null,null,null,null,null,null,null,null,null,"Niemcy",40,{"$f":"_xlfn.XLOOKUP(M10,Tabela2[Kraj],Tabela2[NR])","v":2},null,null,null,null,7,"Estonia",10,10,10,10]
[null,null,null,null,null,null,null,null,null,null,null,null,"Polska",41,{"$f":"_xlfn.XLOOKUP(M11,Tabela2[Kraj],Tabela2[NR])","v":1},null,null,null,null,8,"Grecja",44,44,44,44]
[null,null,null,null,null,null,null,null,null,null,null,null,"Norwegia",42,{"$f":"_xlfn.XLOOKUP(M12,Tabela2[Kraj],Tabela2[NR])","v":10},null,null,null,null,9,"Francja",29,29,29,29]
[null,null,null,null,null,null,null,null,null,null,null,null,"Grecja",44,{"$f":"_xlfn.XLOOKUP(M13,Tabela2[Kraj],Tabela2[NR])","v":8},null,null,null,null,10,"Norwegia",42,42,42,42]
[null,null,null,null,null,null,null,null,null,null,null,null,"Portugalia",59,{"$f":"_xlfn.XLOOKUP(M14,Tabela2[Kraj],Tabela2[NR])","v":11},null,null,null,null,11,"Portugalia",59,59,59,59]